Workbook

Sheet Зведення місячного бюджету
B1: НАЗВА УСТАНОВИ
B2: МІСЯЧНИЙ БЮДЖЕТ | E2: Дата
B4: ЗАГАЛЬНИЙ БЮДЖЕТ | C4: ОРІЄНТОВНО | D4: ФАКТИЧНО | E4: РІЗНИЦЯ
B5: Доходи | C5: =Доходи[[#Totals],[ОРІЄНТОВНО]] -> 63,300.00 | D5: =Доходи[[#Totals],[ФАКТИЧНО]] -> 57,450.00 | E5: =Підсумки[[#This Row],[ФАКТИЧНО]]-Підсумки[[#This Row],[ОРІЄНТОВНО]] -> -5,850.00
B6: Витрати | C6: =ОпераційніВитрати[[#Totals],[ОРІЄНТОВНО]]+ВитратиНаПерсонал[[#Totals],[ОРІЄНТОВНО]] -> 54,500.00 | D6: =ОпераційніВитрати[[#Totals],[ФАКТИЧНО]]+ВитратиНаПерсонал[[#Totals],[ФАКТИЧНО]] -> 49,630.00 | E6: =Підсумки[[#This Row],[ОРІЄНТОВНО]]-Підсумки[[#This Row],[ФАКТИЧНО]] -> 4,870.00
B7: Баланс (різниця доходів і витрат) | C7: =C5-C6 -> 8,800.00 | D7: =D5-D6 -> 7,820.00 | E7: =Підсумки[[#Totals],[ФАКТИЧНО]]-Підсумки[[#Totals],[ОРІЄНТОВНО]] -> -980.00
B10: П’ЯТЬ НАЙБІЛЬШИХ СТАТЕЙ ОПЕРАЦІЙНИХ ВИТРАТ
B11: ВИТРАТИ | C11: СУМА | D11: Відсоток витрат | E11: ЗНИЖКА 15%
B12: =INDEX(ОпераційніВитрати[],MATCH(ПятьНайбільшихСтатейВитрат[[#This Row],[СУМА]],ОпераційніВитрати[П’ЯТЬ НАЙБІЛЬШИХ СУМ],0),1) -> Обслуговування та ремонт | C12: =LARGE(ОпераційніВитрати[П’ЯТЬ НАЙБІЛЬШИХ СУМ],1) -> 4,600.00 | D12: =ПятьНайбільшихСтатейВитрат[[#This Row],[СУМА]]/$D$6 -> 9.3% | E12: =ПятьНайбільшихСтатейВитрат[[#This Row],[СУМА]]*0.15 -> 690.00
B13: =INDEX(ОпераційніВитрати[],MATCH(ПятьНайбільшихСтатейВитрат[[#This Row],[СУМА]],ОпераційніВитрати[П’ЯТЬ НАЙБІЛЬШИХ СУМ],0),1) -> Матеріали | C13: =LARGE(ОпераційніВитрати[П’ЯТЬ НАЙБІЛЬШИХ СУМ],2) -> 4,500.00 | D13: =ПятьНайбільшихСтатейВитрат[[#This Row],[СУМА]]/$D$6 -> 9.1% | E13: =ПятьНайбільшихСтатейВитрат[[#This Row],[СУМА]]*0.15 -> 675.00
B14: =INDEX(ОпераційніВитрати[],MATCH(ПятьНайбільшихСтатейВитрат[[#This Row],[СУМА]],ОпераційніВитрати[П’ЯТЬ НАЙБІЛЬШИХ СУМ],0),1) -> Оренда або іпотека | C14: =LARGE(ОпераційніВитрати[П’ЯТЬ НАЙБІЛЬШИХ СУМ],3) -> 4,500.00 | D14: =ПятьНайбільшихСтатейВитрат[[#This Row],[СУМА]]/$D$6 -> 9.1% | E14: =ПятьНайбільшихСтатейВитрат[[#This Row],[СУМА]]*0.15 -> 675.00
B15: =INDEX(ОпераційніВитрати[],MATCH(ПятьНайбільшихСтатейВитрат[[#This Row],[СУМА]],ОпераційніВитрати[П’ЯТЬ НАЙБІЛЬШИХ СУМ],0),1) -> Податки | C15: =LARGE(ОпераційніВитрати[П’ЯТЬ НАЙБІЛЬШИХ СУМ],4) -> 3,200.00 | D15: =ПятьНайбільшихСтатейВитрат[[#This Row],[СУМА]]/$D$6 -> 6.4% | E15: =ПятьНайбільшихСтатейВитрат[[#This Row],[СУМА]]*0.15 -> 480.00
B16: =INDEX(ОпераційніВитрати[],MATCH(ПятьНайбільшихСтатейВитрат[[#This Row],[СУМА]],ОпераційніВитрати[П’ЯТЬ НАЙБІЛЬШИХ СУМ],0),1) -> Реклама | C16: =LARGE(ОпераційніВитрати[П’ЯТЬ НАЙБІЛЬШИХ СУМ],5) -> 2,500.00 | D16: =ПятьНайбільшихСтатейВитрат[[#This Row],[СУМА]]/$D$6 -> 5.0% | E16: =ПятьНайбільшихСтатейВитрат[[#This Row],[СУМА]]*0.15 -> 375.00
B17: Підсумок | C17: =SUBTOTAL(109,ПятьНайбільшихСтатейВитрат[СУМА]) -> 19,300.00 | D17: =SUBTOTAL(109,ПятьНайбільшихСтатейВитрат[Відсоток витрат]) -> 38.9% | E17: =SUBTOTAL(109,ПятьНайбільшихСтатейВитрат[ЗНИЖКА 15%]) -> 2,895.00

Sheet Доходи
B1: =НАЗВА_УСТАНОВИ -> НАЗВА УСТАНОВИ
B2: =БЮДЖЕТ_Заголовок -> МІСЯЧНИЙ БЮДЖЕТ
B4: ДОХОДИ | C4: ОРІЄНТОВНО | D4: ФАКТИЧНО | E4: П’ЯТЬ НАЙБІЛЬШИХ СУМ | F4: РІЗНИЦЯ
B5: Доходи від реалізації | C5: 60,000.00 | D5: 54,000.00 | E5: =Доходи[[#This Row],[ФАКТИЧНО]]+(10^-6)*ROW(Доходи[[#This Row],[ФАКТИЧНО]]) -> 54,000.00 | F5: =Доходи[[#This Row],[ФАКТИЧНО]]-Доходи[[#This Row],[ОРІЄНТОВНО]] -> -6,000.00
B6: Дохід від відсотків | C6: 3,000.00 | D6: 3,000.00 | E6: =Доходи[[#This Row],[ФАКТИЧНО]]+(10^-6)*ROW(Доходи[[#This Row],[ФАКТИЧНО]]) -> 3,000.00 | F6: =Доходи[[#This Row],[ФАКТИЧНО]]-Доходи[[#This Row],[ОРІЄНТОВНО]] -> 0.00
B7: Продаж активів (виграш/програш) | C7: 300.00 | D7: 450.00 | E7: =Доходи[[#This Row],[ФАКТИЧНО]]+(10^-6)*ROW(Доходи[[#This Row],[ФАКТИЧНО]]) -> 450.00 | F7: =Доходи[[#This Row],[ФАКТИЧНО]]-Доходи[[#This Row],[ОРІЄНТОВНО]] -> 150.00
B8: Сумарний дохід | C8: =SUBTOTAL(109,Доходи[ОРІЄНТОВНО]) -> 63,300.00 | D8: =SUBTOTAL(109,Доходи[ФАКТИЧНО]) -> 57,450.00 | F8: =SUBTOTAL(109,Доходи[РІЗНИЦЯ]) -> -5,850.00

Sheet Витрати на персонал
B1: =НАЗВА_УСТАНОВИ -> НАЗВА УСТАНОВИ
B2: =БЮДЖЕТ_Заголовок -> МІСЯЧНИЙ БЮДЖЕТ
B4: ВИТРАТИ НА ПЕРСОНАЛ | C4: ОРІЄНТОВНО | D4: ФАКТИЧНО | E4: П’ЯТЬ НАЙБІЛЬШИХ СУМ | F4: РІЗНИЦЯ
B5: Заробітна плата | C5: 9,500.00 | D5: 9,600.00 | E5: =ВитратиНаПерсонал[[#This Row],[ФАКТИЧНО]]+(10^-6)*ROW(ВитратиНаПерсонал[[#This Row],[ФАКТИЧНО]]) -> 9,600.00 | F5: =ВитратиНаПерсонал[[#This Row],[ОРІЄНТОВНО]]-ВитратиНаПерсонал[[#This Row],[ФАКТИЧНО]] -> -100.00
B6: ДОДАТКОВІ ВИПЛАТИ ПРАЦІВНИКАМ | C6: 4,000.00 | D6: 0.00 | E6: =ВитратиНаПерсонал[[#This Row],[ФАКТИЧНО]]+(10^-6)*ROW(ВитратиНаПерсонал[[#This Row],[ФАКТИЧНО]]) -> 0.00 | F6: =ВитратиНаПерсонал[[#This Row],[ОРІЄНТОВНО]]-ВитратиНаПерсонал[[#This Row],[ФАКТИЧНО]] -> 4,000.00
B7: Комісія | C7: 5,000.00 | D7: 4,500.00 | E7: =ВитратиНаПерсонал[[#This Row],[ФАКТИЧНО]]+(10^-6)*ROW(ВитратиНаПерсонал[[#This Row],[ФАКТИЧНО]]) -> 4,500.00 | F7: =ВитратиНаПерсонал[[#This Row],[ОРІЄНТОВНО]]-ВитратиНаПерсонал[[#This Row],[ФАКТИЧНО]] -> 500.00
B8: ЗАГАЛЬНА СУМА ВИТРАТ НА ПЕРСОНАЛ | C8: =SUBTOTAL(109,ВитратиНаПерсонал[ОРІЄНТОВНО]) -> 18,500.00 | D8: =SUBTOTAL(109,ВитратиНаПерсонал[ФАКТИЧНО]) -> 14,100.00 | F8: =SUBTOTAL(109,ВитратиНаПерсонал[РІЗНИЦЯ]) -> 4,400.00

Sheet Операційні витрати
B1: =НАЗВА_УСТАНОВИ -> НАЗВА УСТАНОВИ
B2: =БЮДЖЕТ_Заголовок -> МІСЯЧНИЙ БЮДЖЕТ
B4: ОПЕРАЦІЙНІ ВИТРАТИ | C4: ОРІЄНТОВНО | D4: ФАКТИЧНО | E4: П’ЯТЬ НАЙБІЛЬШИХ СУМ | F4: РІЗНИЦЯ
B5: Реклама | C5: 3,000.00 | D5: 2,500.00 | E5: =ОпераційніВитрати[[#This Row],[ФАКТИЧНО]]+(10^-6)*ROW(ОпераційніВитрати[[#This Row],[ФАКТИЧНО]]) -> 2,500.00 | F5: =ОпераційніВитрати[[#This Row],[ОРІЄНТОВНО]]-ОпераційніВитрати[[#This Row],[ФАКТИЧНО]] -> 500.00
B6: Безнадійна заборгованість | C6: 2,000.00 | D6: 2,000.00 | E6: =ОпераційніВитрати[[#This Row],[ФАКТИЧНО]]+(10^-6)*ROW(ОпераційніВитрати[[#This Row],[ФАКТИЧНО]]) -> 2,000.00 | F6: =ОпераційніВитрати[[#This Row],[ОРІЄНТОВНО]]-ОпераційніВитрати[[#This Row],[ФАКТИЧНО]] -> 0.00
B7: Знижка за оплату готівкою | C7: 1,500.00 | D7: 2,175.00 | E7: =ОпераційніВитрати[[#This Row],[ФАКТИЧНО]]+(10^-6)*ROW(ОпераційніВитрати[[#This Row],[ФАКТИЧНО]]) -> 2,175.00 | F7: =ОпераційніВитрати[[#This Row],[ОРІЄНТОВНО]]-ОпераційніВитрати[[#This Row],[ФАКТИЧНО]] -> -675.00
B8: Витрати на доставку | C8: 2,000.00 | D8: 1,500.00 | E8: =ОпераційніВитрати[[#This Row],[ФАКТИЧНО]]+(10^-6)*ROW(ОпераційніВитрати[[#This Row],[ФАКТИЧНО]]) -> 1,500.00 | F8: =ОпераційніВитрати[[#This Row],[ОРІЄНТОВНО]]-ОпераційніВитрати[[#This Row],[ФАКТИЧНО]] -> 500.00
B9: Амортизація | C9: 1,000.00 | D9: 1,000.00 | E9: =ОпераційніВитрати[[#This Row],[ФАКТИЧНО]]+(10^-6)*ROW(ОпераційніВитрати[[#This Row],[ФАКТИЧНО]]) -> 1,000.00 | F9: =ОпераційніВитрати[[#This Row],[ОРІЄНТОВНО]]-ОпераційніВитрати[[#This Row],[ФАКТИЧНО]] -> 0.00
B10: Збір і передплати | C10: 500.00 | D10: 525.00 | E10: =ОпераційніВитрати[[#This Row],[ФАКТИЧНО]]+(10^-6)*ROW(ОпераційніВитрати[[#This Row],[ФАКТИЧНО]]) -> 525.00 | F10: =ОпераційніВитрати[[#This Row],[ОРІЄНТОВНО]]-ОпераційніВитрати[[#This Row],[ФАКТИЧНО]] -> -25.00
B11: Страхування | C11: 1,300.00 | D11: 1,275.00 | E11: =ОпераційніВитрати[[#This Row],[ФАКТИЧНО]]+(10^-6)*ROW(ОпераційніВитрати[[#This Row],[ФАКТИЧНО]]) -> 1,275.00 | F11: =ОпераційніВитрати[[#This Row],[ОРІЄНТОВНО]]-ОпераційніВитрати[[#This Row],[ФАКТИЧНО]] -> 25.00
B12: Відсоткова ставка | C12: 2,000.00 | D12: 2,200.00 | E12: =ОпераційніВитрати[[#This Row],[ФАКТИЧНО]]+(10^-6)*ROW(ОпераційніВитрати[[#This Row],[ФАКТИЧНО]]) -> 2,200.00 | F12: =ОпераційніВитрати[[#This Row],[ОРІЄНТОВНО]]-ОпераційніВитрати[[#This Row],[ФАКТИЧНО]] -> -200.00
B13: Юридичні послуги та аудит | C13: 1,000.00 | D13: 800.00 | E13: =ОпераційніВитрати[[#This Row],[ФАКТИЧНО]]+(10^-6)*ROW(ОпераційніВитрати[[#This Row],[ФАКТИЧНО]]) -> 800.00 | F13: =ОпераційніВитрати[[#This Row],[ОРІЄНТОВНО]]-ОпераційніВитрати[[#This Row],[ФАКТИЧНО]] -> 200.00
B14: Обслуговування та ремонт | C14: 4,500.00 | D14: 4,600.00 | E14: =ОпераційніВитрати[[#This Row],[ФАКТИЧНО]]+(10^-6)*ROW(ОпераційніВитрати[[#This Row],[ФАКТИЧНО]]) -> 4,600.00 | F14: =ОпераційніВитрати[[#This Row],[ОРІЄНТОВНО]]-ОпераційніВитрати[[#This Row],[ФАКТИЧНО]] -> -100.00
B15: Матеріально-технічне забезпечення офісу | C15: 800.00 | D15: 750.00 | E15: =ОпераційніВитрати[[#This Row],[ФАКТИЧНО]]+(10^-6)*ROW(ОпераційніВитрати[[#This Row],[ФАКТИЧНО]]) -> 750.00 | F15: =ОпераційніВитрати[[#This Row],[ОРІЄНТОВНО]]-ОпераційніВитрати[[#This Row],[ФАКТИЧНО]] -> 50.00
B16: Поштові витрати | C16: 400.00 | D16: 350.00 | E16: =ОпераційніВитрати[[#This Row],[ФАКТИЧНО]]+(10^-6)*ROW(ОпераційніВитрати[[#This Row],[ФАКТИЧНО]]) -> 350.00 | F16: =ОпераційніВитрати[[#This Row],[ОРІЄНТОВНО]]-ОпераційніВитрати[[#This Row],[ФАКТИЧНО]] -> 50.00
B17: Оренда або іпотека | C17: 4,100.00 | D17: 4,500.00 | E17: =ОпераційніВитрати[[#This Row],[ФАКТИЧНО]]+(10^-6)*ROW(ОпераційніВитрати[[#This Row],[ФАКТИЧНО]]) -> 4,500.00 | F17: =ОпераційніВитрати[[#This Row],[ОРІЄНТОВНО]]-ОпераційніВитрати[[#This Row],[ФАКТИЧНО]] -> -400.00
B18: Витрати на збут | C18: 350.00 | D18: 400.00 | E18: =ОпераційніВитрати[[#This Row],[ФАКТИЧНО]]+(10^-6)*ROW(ОпераційніВитрати[[#This Row],[ФАКТИЧНО]]) -> 400.00 | F18: =ОпераційніВитрати[[#This Row],[ОРІЄНТОВНО]]-ОпераційніВитрати[[#This Row],[ФАКТИЧНО]] -> -50.00
B19: Доставка та зберігання | C19: 900.00 | D19: 840.00 | E19: =ОпераційніВитрати[[#This Row],[ФАКТИЧНО]]+(10^-6)*ROW(ОпераційніВитрати[[#This Row],[ФАКТИЧНО]]) -> 840.00 | F19: =ОпераційніВитрати[[#This Row],[ОРІЄНТОВНО]]-ОпераційніВитрати[[#This Row],[ФАКТИЧНО]] -> 60.00
B20: Матеріали | C20: 5,000.00 | D20: 4,500.00 | E20: =ОпераційніВитрати[[#This Row],[ФАКТИЧНО]]+(10^-6)*ROW(ОпераційніВитрати[[#This Row],[ФАКТИЧНО]]) -> 4,500.00 | F20: =ОпераційніВитрати[[#This Row],[ОРІЄНТОВНО]]-ОпераційніВитрати[[#This Row],[ФАКТИЧНО]] -> 500.00
B21: Податки | C21: 3,000.00 | D21: 3,200.00 | E21: =ОпераційніВитрати[[#This Row],[ФАКТИЧНО]]+(10^-6)*ROW(ОпераційніВитрати[[#This Row],[ФАКТИЧНО]]) -> 3,200.00 | F21: =ОпераційніВитрати[[#This Row],[ОРІЄНТОВНО]]-ОпераційніВитрати[[#This Row],[ФАКТИЧНО]] -> -200.00
B22: Телефон | C22: 250.00 | D22: 280.00 | E22: =ОпераційніВитрати[[#This Row],[ФАКТИЧНО]]+(10^-6)*ROW(ОпераційніВитрати[[#This Row],[ФАКТИЧНО]]) -> 280.00 | F22: =ОпераційніВитрати[[#This Row],[ОРІЄНТОВНО]]-ОпераційніВитрати[[#This Row],[ФАКТИЧНО]] -> -30.00
B23: Комунальні послуги | C23: 1,400.00 | D23: 1,385.00 | E23: =ОпераційніВитрати[[#This Row],[ФАКТИЧНО]]+(10^-6)*ROW(ОпераційніВитрати[[#This Row],[ФАКТИЧНО]]) -> 1,385.00 | F23: =ОпераційніВитрати[[#This Row],[ОРІЄНТОВНО]]-ОпераційніВитрати[[#This Row],[ФАКТИЧНО]] -> 15.00
B24: Інше | C24: 1,000.00 | D24: 750.00 | E24: =ОпераційніВитрати[[#This Row],[ФАКТИЧНО]]+(10^-6)*ROW(ОпераційніВитрати[[#This Row],[ФАКТИЧНО]]) -> 750.00 | F24: =ОпераційніВитрати[[#This Row],[ОРІЄНТОВНО]]-ОпераційніВитрати[[#This Row],[ФАКТИЧНО]] -> 250.00
B25: Загальна сума операційних витрат | C25: =SUBTOTAL(109,ОпераційніВитрати[ОРІЄНТОВНО]) -> 36,000.00 | D25: =SUBTOTAL(109,ОпераційніВитрати[ФАКТИЧНО]) -> 35,530.00 | F25: =SUBTOTAL(109,ОпераційніВитрати[РІЗНИЦЯ]) -> 470.00
